lending/lending_fUSD_20250913
["ID","MTS","AMOUNT","RATE_DAILY","PERIOD"]
[385327057,1757778651365,-400.0,0.00027397,2]
[385327059,1757778651375,-251.195915,0.00027397,7]
[385327061,1757778651384,-400.0,0.00027397,2]
[385327063,1757778651393,-251.195915,0.00027397,7]
[385327065,1757778651403,-251.195915,0.00027397,7]
[385327067,1757778651412,-251.195915,0.00027397,7]
[385327069,1757778651421,-251.195915,0.00027397,7]
[385327071,1757778651430,-251.195915,0.00027397,7]
[385327073,1757778651439,-251.195915,0.00027397,7]
[385327075,1757778651449,-251.195915,0.00027397,7]
[385327077,1757778651459,-490.83,0.00027397,2]
[385327079,1757778651468,-251.195915,0.00027397,7]
[385327081,1757778651478,-400.0,0.00027397,2]
[385327083,1757778651488,-251.195915,0.00027397,7]
[385327085,1757778651497,-400.0,0.00027397,2]
[385327087,1757778651507,-251.195915,0.00027397,7]
[385327089,1757778651517,-251.195918,0.00027397,7]
[385327091,1757778651527,-400.0,0.00027397,2]
[385327093,1757778651536,-400.0,0.00027397,2]
[385327095,1757778651546,-439.16,0.00027397,2]
[385327097,1757778651555,-400.0,0.00027397,2]
[385327099,1757778651565,-583.55,0.00027397,2]
[385327101,1757778651575,-400.0,0.00027397,2]
[385327102,1757778651584,-400.0,0.00027397,2]
[385327105,1757778651593,-400.0,0.00027397,2]
[385327106,1757778651603,-501.96889834,0.00027397,2]
[385327108,1757778651612,-701.99,0.00027397,2]
[385327110,1757778651622,-872.42,0.00027397,2]
[385327112,1757778651631,-400.0,0.00027397,2]
[385327114,1757778651641,-400.0,0.00027397,2]
[385327116,1757778651650,-475.47,0.00027397,2]
[385327118,1757778651659,-205.49885622,0.00027397,2]
[385327120,1757778651668,-400.0,0.00027397,2]
[385327122,1757778651678,-556.97,0.00027397,2]
[385327124,1757778651688,-400.0,0.00027397,2]
[385327126,1757778651702,-402.29831543,0.00027397,2]
[385327128,1757778651711,-628.59,0.00027397,2]
[385327130,1757778651720,-451.53,0.00027397,2]
[385327132,1757778651730,-400.0,0.00027397,2]
[385327134,1757778651739,-400.0,0.00027397,2]
[385327136,1757778651748,-478.73473226,0.00027397,2]
[385327138,1757778651757,-400.0,0.00027397,2]
[385327140,1757778651767,-661.8,0.00027397,2]
[385327142,1757778651777,-400.0,0.00027397,2]
[385327144,1757778651787,-752.49,0.00027397,2]
[385327146,1757778651796,-400.0,0.00027397,2]
[385327148,1757778651806,-400.0,0.00027397,2]
[385327150,1757778651815,-734.72,0.00027397,2]
[385327152,1757778651825,-795.43,0.00027397,2]
[385327154,1757778651834,-400.0,0.00027397,2]
[385327156,1757778651843,-480.91,0.00027397,2]
[385327158,1757778651853,-714.15,0.00027397,2]
[385327160,1757778651863,-550.07,0.00027397,2]
[385327162,1757778651872,-400.0,0.00027397,2]
[385327164,1757778651882,-400.0,0.00027397,2]
[385327166,1757778651891,-400.0,0.00027397,2]
[385327168,1757778651902,-540.56,0.00027397,2]
[385327170,1757778651911,-151.0,0.00027397,7]
[385327172,1757778651920,-400.0,0.00027397,2]
[385327174,1757778651929,-151.0,0.00027397,7]
[385327176,1757778651939,-151.0,0.00027397,7]
[385327178,1757778651948,-504.78,0.00027397,2]
[385327180,1757778651958,-400.0,0.00027397,2]
[385327182,1757778651967,-151.0,0.00027397,7]
[385327184,1757778651977,-400.0,0.00027397,2]
[385327186,1757778651986,-151.0,0.00027397,7]
[385327188,1757778651996,-151.0,0.00027397,7]
[385327190,1757778652006,-400.0,0.00027397,2]
[385327192,1757778652015,-673.58,0.00027397,2]
[385327194,1757778652024,-400.0,0.00027397,2]
[385327196,1757778652034,-736.9,0.00027397,2]
[385327198,1757778652043,-400.0,0.00027397,2]
[385327200,1757778652053,-400.0,0.00027397,2]
[385327202,1757778652063,-400.0,0.00027397,2]
[385327204,1757778652072,-400.0,0.00027397,2]
[385327206,1757778652082,-400.0,0.00027397,2]
[385327208,1757778652091,-819.51,0.00027397,2]
[385327210,1757778652101,-438.33097006,0.00027397,2]
[385327212,1757778652112,-400.0,0.00027397,2]
[385327214,1757778652121,-400.0,0.00027397,2]
[385327216,1757778652130,-400.0,0.00027397,2]
[385327218,1757778652139,-400.0,0.00027397,2]
[385327219,1757778652148,-400.0,0.00027397,2]
[385327221,1757778652158,-691.52,0.00027397,2]
[385327223,1757778652167,-400.0,0.00027397,2]
[385327225,1757778652176,-218.07004754,0.00027397,2]
[385327228,1757778652185,-752.19,0.00027397,2]
[385327229,1757778652195,-1000.0,0.00027397,2]
[385327231,1757778652205,-542.1,0.00027397,2]
[385327234,1757778652215,-400.0,0.00027397,2]
[385327236,1757778652225,-459.71,0.00027397,2]
[385327238,1757778652236,-960.47,0.00027397,2]
[385327240,1757778652245,-400.0,0.00027397,2]
[385327242,1757778652255,-400.0,0.00027397,2]
[385327244,1757778652265,-1135.14,0.00027397,2]
[385327245,1757778652274,-809.15,0.00027397,2]
[385327247,1757778652283,-405.0063522,0.00027397,2]
[385327249,1757778652293,-210.47147096,0.00027397,2]
[385327251,1757778652302,-400.0,0.00027397,2]
[385327253,1757778652311,-750.53,0.00027397,2]
[385327255,1757778652321,-400.0,0.00027397,2]
[385327257,1757778652330,-400.0,0.00027397,2]
[385327259,1757778652340,-400.0,0.00027397,2]
[385327262,1757778652349,-400.0,0.00027397,2]
[385327263,1757778652360,-400.0,0.00027397,2]
[385327265,1757778652370,-400.0,0.00027397,2]
[385327267,1757778652380,-400.0,0.00027397,2]
[385327269,1757778652390,-400.0,0.00027397,2]
[385327271,1757778652400,-400.0,0.00027397,2]
[385327273,1757778652409,-806.91,0.00027397,2]
[385327275,1757778652419,-400.0,0.00027397,2]
[385327278,1757778652429,-400.0,0.00027397,2]
[385327280,1757778652438,-796.27,0.00027397,2]
[385327281,1757778652447,-770.72,0.00027397,2]
[385327283,1757778652457,-400.0,0.00027397,2]
[385327285,1757778652467,-400.0,0.00027397,2]
[385327287,1757778652476,-400.0,0.00027397,2]
[385327289,1757778652487,-400.0,0.00027397,2]
[385327290,1757778652496,-400.0,0.00027397,2]
[385327291,1757778652505,-787.1,0.00027397,2]
[385327292,1757778652514,-400.0,0.00027397,2]
[385327293,1757778652524,-407.96,0.00027397,2]
[385327294,1757778652534,-400.0,0.00027397,2]
[385327295,1757778652543,-401.40474685,0.00027397,2]
[385327296,1757778652552,-416.91664502,0.00027397,2]
[385327297,1757778652560,-400.0,0.00027397,2]
[385327298,1757778652570,-400.0,0.00027397,2]
[385327299,1757778652578,-400.0,0.00027397,2]
[385327300,1757778652588,-152.468586,0.00027397,7]
[385327301,1757778652597,-400.0,0.00027397,2]
[385327302,1757778652607,-152.468586,0.00027397,7]
[385327303,1757778652616,-400.0,0.00027397,2]
[385327305,1757778652627,-352.43583556,0.00027397,2]
[385327307,1757778652636,-400.0,0.00027397,2]
[385327309,1757778652646,-840.29,0.00027397,2]
[385327311,1757778652655,-402.67233465,0.00027397,2]
[385327313,1757778652664,-152.468586,0.00027397,7]
[385327315,1757778652674,-500.0,0.00027397,2]
[385327317,1757778652683,-500.0,0.00027397,2]
[385327319,1757778652696,-500.0,0.00027397,2]
[385327321,1757778652705,-400.0,0.00027397,2]
[385327323,1757778652716,-152.468581,0.00027397,7]
[385327325,1757778652731,-500.0,0.00027397,2]
[385327326,1757778652740,-400.0,0.00027397,2]
[385327328,1757778652751,-500.0,0.00027397,2]
[385327330,1757778652760,-400.0,0.00027397,2]
[385327332,1757778652779,-890.11,0.00027397,2]
[385327334,1757778652788,-400.0,0.00027397,2]
[385327336,1757778652798,-615.79,0.00027397,2]
[385327338,1757778652807,-400.0,0.00027397,2]
[385327340,1757778652817,-778.24,0.00027397,2]
[385327342,1757778652826,-620.45,0.00027397,2]
[385327344,1757778652836,-406.06,0.00027397,2]
[385327346,1757778652845,-721.01,0.00027397,2]
[385327348,1757778652855,-583.55,0.00027397,2]
[385327350,1757778652864,-400.0,0.00027397,2]
[385327352,1757778652874,-400.0,0.00027397,2]
[385327354,1757778652883,-400.0,0.00027397,2]
[385327356,1757778652893,-400.0,0.00027397,2]
[385327358,1757778652903,-274.45525383,0.00027397,2]
[385327360,1757778652912,-400.0,0.00027397,2]
[385327362,1757778652922,-400.0,0.00027397,2]
[385327364,1757778652931,-400.0,0.00027397,2]
[385327366,1757778652940,-400.0,0.00027397,2]
[385327368,1757778652950,-400.0,0.00027397,2]
[385327370,1757778652959,-496.77,0.00027397,2]
[385327372,1757778652968,-881.69,0.00027397,2]
[385327374,1757778652978,-400.0,0.00027397,2]
[385327376,1757778652988,-642.8,0.00027397,2]
[385327378,1757778652997,-400.0,0.00027397,2]
[385327380,1757778653006,-400.0,0.00027397,2]
[385327382,1757778653015,-719.52,0.00027397,2]
[385327384,1757778653024,-731.44,0.00027397,2]
[385327386,1757778653033,-719.52,0.00027397,2]
[385327388,1757778653042,-400.0,0.00027397,2]
[385327390,1757778653052,-719.52,0.00027397,2]
[385327392,1757778653061,-401.29445919,0.00027397,2]
[385327394,1757778653071,-400.0,0.00027397,2]
[385327396,1757778653081,-621.0,0.00027397,2]
[385327398,1757778653090,-400.0,0.00027397,2]
[385327400,1757778653099,-400.0,0.00027397,2]
[385327402,1757778653110,-716.86,0.00027397,2]
[385327404,1757778653119,-400.0,0.00027397,2]
[385327406,1757778653128,-786.15,0.00027397,2]
[385327408,1757778653138,-400.0,0.00027397,2]
[385327410,1757778653147,-400.0,0.00027397,2]
[385327412,1757778653157,-400.0,0.00027397,2]
[385327414,1757778653166,-400.0,0.00027397,2]
[385327416,1757778653175,-400.0,0.00027397,2]
[385327418,1757778653184,-400.0,0.00027397,2]
[385327420,1757778653194,-1013.73,0.00027397,2]
[385327422,1757778653203,-400.0,0.00027397,2]
[385327424,1757778653213,-400.0,0.00027397,2]
[385327426,1757778653222,-699.17,0.00027397,2]
[385327428,1757778653231,-400.0,0.00027397,2]
[385327430,1757778653242,-400.0,0.00027397,2]
[385327432,1757778653251,-1002.82,0.00027397,2]
[385327434,1757778653261,-400.0,0.00027397,2]
[385327436,1757778653270,-400.0,0.00027397,2]
[385327438,1757778653280,-400.0,0.00027397,2]
[385327440,1757778653289,-400.0,0.00027397,2]
[385327442,1757778653299,-400.0,0.00027397,2]
[385327444,1757778653308,-400.0,0.00027397,2]
[385327446,1757778653318,-400.0,0.00027397,2]
[385327448,1757778653327,-400.0,0.00027397,2]
[385327450,1757778653336,-600.45,0.00027397,2]
[385327473,1757778653346,-400.0,0.00027397,2]
[385327476,1757778653565,-400.0,0.00027397,2]
[385327478,1757778653574,-400.0,0.00027397,2]
[385327480,1757778653584,-641.12,0.00027397,2]
[385327482,1757778653594,-400.0,0.00027397,2]
[385327484,1757778653604,-500.0,0.00027397,2]
[385327486,1757778653614,-400.0,0.00027397,2]
[385327488,1757778653625,-500.0,0.00027397,2]
[385327490,1757778653634,-400.0,0.00027397,2]
[385327492,1757778653644,-400.0,0.00027397,2]
[385327494,1757778653653,-400.0,0.00027397,2]
[385327496,1757778653662,-500.0,0.00027397,2]
[385327498,1757778653673,-500.0,0.00027397,2]
[385327500,1757778653683,-470.38,0.00027397,2]
[385327502,1757778653694,-400.0,0.00027397,2]
[385327504,1757778653707,-402.59,0.00027397,2]
[385327506,1757778653716,-400.0,0.00027397,2]
[385327508,1757778653725,-895.78,0.00027397,2]
[385327510,1757778653734,-2592.06,0.00027397,2]
[385327512,1757778653745,-400.0,0.00027397,2]
[385327514,1757778653755,-400.0,0.00027397,2]
[385327516,1757778653764,-400.0,0.00027397,2]
[385327518,1757778653773,-277.684563,0.00027397,7]
[385327520,1757778653783,-400.0,0.00027397,2]
[385327522,1757778653792,-400.0,0.00027397,2]
[385327524,1757778653802,-400.0,0.00027397,2]
[385327526,1757778653811,-533.18,0.00027397,2]
[385327528,1757778653833,-400.0,0.00027397,2]
[385327530,1757778653843,-400.0,0.00027397,2]
[385327533,1757778653853,-508.53,0.00027397,2]
[385327535,1757778653863,-400.0,0.00027397,2]
[385327537,1757778653873,-400.0,0.00027397,2]
[385327539,1757778653883,-400.0,0.00027397,2]
[385327541,1757778653892,-400.0,0.00027397,2]
[385327543,1757778653902,-678.05,0.00027397,2]
[385327544,1757778653911,-400.0,0.00027397,2]
[385327547,1757778653923,-453.75,0.00027397,2]
[385327549,1757778653932,-400.0,0.00027397,2]
[385327551,1757778653942,-400.0,0.00027397,2]
[385327553,1757778653951,-400.0,0.00027397,2]
[385327555,1757778653961,-1257.19,0.00027397,2]
[385327557,1757778653970,-400.0,0.00027397,2]
[385327559,1757778653980,-537.29,0.00027397,2]
[385327561,1757778653990,-260.90048233,0.00027397,2]
[385327563,1757778653999,-400.0,0.00027397,2]
[385327565,1757778654010,-789.11,0.00027397,2]
[385327567,1757778654019,-400.0,0.00027397,2]
[385327569,1757778654029,-1169.8,0.00027397,2]
[385327571,1757778654039,-745.77,0.00027397,2]
[385327573,1757778654049,-400.0,0.00027397,2]
[385327575,1757778654059,-400.0,0.00027397,2]
[385327577,1757778654068,-400.0,0.00027397,2]
[385327579,1757778654078,-400.0,0.00027397,2]
[385327581,1757778654088,-402.82841735,0.00027397,2]
[385327583,1757778654097,-648.09,0.00027397,2]
[385327585,1757778654106,-400.0,0.00027397,2]
[385327587,1757778654116,-400.0,0.00027397,2]
[385327589,1757778654126,-400.0,0.00027397,2]
[385327591,1757778654135,-400.0,0.00027397,2]
[385327593,1757778654145,-709.35,0.00027397,2]
[385327595,1757778654155,-151.0,0.00027397,7]
[385327597,1757778654164,-400.0,0.00027397,2]
[385327599,1757778654174,-709.35,0.00027397,2]
[385327601,1757778654183,-735.52,0.00027397,2]
[385327603,1757778654193,-509.94,0.00027397,2]
[385327605,1757778654203,-400.0,0.00027397,2]
[385327607,1757778654213,-400.0,0.00027397,2]
[385327609,1757778654223,-801.77,0.00027397,2]
[385327611,1757778654233,-400.0,0.00027397,2]
[385327613,1757778654243,-400.0,0.00027397,2]
[385327615,1757778654254,-400.0,0.00027397,2]
[385327618,1757778654264,-400.0,0.00027397,2]
[385327620,1757778654273,-1000.0,0.00027397,2]
[385327622,1757778654283,-472.35,0.00027397,2]
[385327624,1757778654292,-400.0,0.00027397,2]
[385327626,1757778654302,-759.47,0.00027397,2]
[385327628,1757778654312,-400.0,0.00027397,2]
[385327630,1757778654323,-400.0,0.00027397,2]
[385327632,1757778654332,-1022.45,0.00027397,2]
[385327634,1757778654343,-400.0,0.00027397,2]
[385327636,1757778654352,-400.0,0.00027397,2]
[385327638,1757778654363,-400.0,0.00027397,2]
[385327640,1757778654373,-972.97,0.00027397,2]
[385327642,1757778654382,-400.0,0.00027397,2]
[385327644,1757778654392,-400.0,0.00027397,2]
[385327646,1757778654401,-400.0,0.00027397,2]
[385327648,1757778654411,-151.0,0.00027397,7]
[385327650,1757778654422,-605.56,0.00027397,2]
[385327652,1757778654435,-400.0,0.00027397,2]
[385327654,1757778654444,-400.0,0.00027397,2]
[385327656,1757778654454,-400.0,0.00027397,2]
[385327658,1757778654463,-741.61,0.00027397,2]
[385327660,1757778654473,-400.0,0.00027397,2]
[385327662,1757778654483,-151.0,0.00027397,7]
[385327664,1757778654492,-730.73,0.00027397,2]
[385327666,1757778654503,-450.56,0.00027397,2]
[385327668,1757778654512,-400.0,0.00027397,2]
[385327670,1757778654522,-400.0,0.00027397,2]
[385327672,1757778654532,-500.0,0.00027397,2]
[385327674,1757778654541,-400.0,0.00027397,2]
[385327676,1757778654552,-400.0,0.00027397,2]
[385327678,1757778654562,-526.24,0.00027397,2]
[385327680,1757778654573,-436.77,0.00027397,2]
[385327682,1757778654583,-151.0,0.00027397,7]
[385327684,1757778654592,-1374.99,0.00027397,2]
[385327686,1757778654602,-504.22,0.00027397,2]
[385327688,1757778654612,-876.84,0.00027397,2]
[385327690,1757778654622,-400.0,0.00027397,2]
[385327692,1757778654632,-594.58,0.00027397,2]
[385327694,1757778654642,-400.0,0.00027397,2]
[385327696,1757778654652,-1003.09,0.00027397,2]
[385327698,1757778654661,-400.0,0.00027397,2]
[385327700,1757778654671,-400.0,0.00027397,2]
[385327702,1757778654682,-780.86,0.00027397,2]
[385327704,1757778654693,-3209.32,0.00027397,2]
[385327706,1757778654703,-400.0,0.00027397,2]
[385327708,1757778654713,-400.0,0.00027397,2]
[385327710,1757778654723,-151.0,0.00027397,7]
[385327712,1757778654732,-400.0,0.00027397,2]
[385327714,1757778654742,-720.32,0.00027397,2]
[385327716,1757778654752,-151.0,0.00027397,7]
[385327718,1757778654762,-400.0,0.00027397,2]
[385327720,1757778654771,-151.0,0.00027397,7]
[385327722,1757778654782,-400.0,0.00027397,2]
[385327724,1757778654792,-519.54,0.00027397,2]
[385327726,1757778654802,-400.0,0.00027397,2]
[385327728,1757778654811,-400.0,0.00027397,2]
[385327731,1757778654822,-432.04,0.00027397,2]
[385327732,1757778654832,-508.23,0.00027397,2]
[385327734,1757778654841,-400.0,0.00027397,2]
[385327737,1757778654851,-400.0,0.00027397,2]
[385327738,1757778654861,-400.0,0.00027397,2]
[385327740,1757778654870,-400.0,0.00027397,2]
[385327742,1757778654881,-701.85,0.00027397,2]
[385327745,1757778654890,-400.0,0.00027397,2]
[385327746,1757778654901,-1820.78,0.00027397,2]
[385327748,1757778654910,-400.0,0.00027397,2]
[385327751,1757778654920,-400.0,0.00027397,2]
[385327752,1757778654929,-400.0,0.00027397,2]
[385327754,1757778654939,-400.0,0.00027397,2]
[385327756,1757778654948,-401.00431661,0.00027397,2]
[385327758,1757778654958,-400.0,0.00027397,2]
[385327761,1757778654968,-400.0,0.00027397,2]
[385327762,1757778654977,-400.0,0.00027397,2]
[385327765,1757778654987,-730.06,0.00027397,2]
[385327767,1757778654997,-400.0,0.00027397,2]
[385327768,1757778655007,-400.0,0.00027397,2]
[385327769,1757778655016,-400.0,0.00027397,2]
[385327770,1757778655025,-693.6,0.00027397,2]
[385327771,1757778655035,-282.919143,0.00027397,7]
[385327772,1757778655044,-676.47,0.00027397,2]
[385327774,1757778655053,-483.6,0.00027397,2]
[385327776,1757778655063,-400.0,0.00027397,2]
[385327778,1757778655072,-282.919143,0.00027397,7]
[385327780,1757778655082,-941.17,0.00027397,2]
[385327782,1757778655091,-831.55,0.00027397,2]
[385327784,1757778655101,-282.919143,0.00027397,7]
[385327786,1757778655111,-400.0,0.00027397,2]
[385327788,1757778655120,-400.0,0.00027397,2]
[385327790,1757778655129,-400.0,0.00027397,2]
[385327792,1757778655138,-999.22,0.00027397,2]
[385327794,1757778655148,-282.919142,0.00027397,7]
[385327796,1757778655157,-817.91,0.00027397,2]
[385327798,1757778655167,-500.0,0.00027397,2]
[385327800,1757778655176,-500.0,0.00027397,2]
[385327802,1757778655185,-400.0,0.00027397,2]
[385327805,1757778655195,-400.0,0.00027397,2]
[385327806,1757778655204,-500.0,0.00027397,2]
[385327809,1757778655214,-400.0,0.00027397,2]
[385327811,1757778655224,-500.0,0.00027397,2]
[385327813,1757778655233,-400.0,0.00027397,2]
[385327815,1757778655243,-500.0,0.00027397,2]
[385327817,1757778655252,-400.0,0.00027397,2]
[385327819,1757778655263,-536.28,0.00027397,2]
[385327821,1757778655273,-400.0,0.00027397,2]
[385327823,1757778655283,-614.24,0.00027397,2]
[385327825,1757778655293,-400.0,0.00027397,2]
[385327827,1757778655303,-400.0,0.00027397,2]
[385327829,1757778655312,-1228.88,0.00027397,2]
[385327831,1757778655322,-400.0,0.00027397,2]
[385327833,1757778655332,-405.87841166,0.00027397,2]
[385327835,1757778655343,-400.0,0.00027397,2]
[385327837,1757778655352,-2210.9,0.00027397,2]
[385327839,1757778655363,-400.0,0.00027397,2]
[385327841,1757778655373,-661.24,0.00027397,2]
[385327843,1757778655382,-400.0,0.00027397,2]
[385327845,1757778655392,-400.0,0.00027397,2]
[385327847,1757778655402,-1097.98,0.00027397,2]
[385327849,1757778655412,-763.95,0.00027397,2]
[385327851,1757778655422,-400.0,0.00027397,2]
[385327853,1757778655432,-400.0,0.00027397,2]
[385327855,1757778655441,-432.3383718,0.00027397,2]
[385327857,1757778655451,-400.0,0.00027397,2]
[385327859,1757778655460,-400.0,0.00027397,2]
[385327861,1757778655471,-572.56949644,0.00027397,2]
[385327863,1757778655481,-400.0,0.00027397,2]
[385327865,1757778655491,-850.74,0.00027397,2]
[385327867,1757778655500,-400.0,0.00027397,2]
[385327869,1757778655510,-400.0,0.00027397,2]
[385327871,1757778655520,-400.0,0.00027397,2]
[385327873,1757778655530,-400.0,0.00027397,2]
[385327875,1757778655540,-515.47,0.00027397,2]
[385327877,1757778655549,-425.66,0.00027397,2]
[385327879,1757778655559,-1081.81,0.00027397,2]
[385327881,1757778655568,-400.0,0.00027397,2]
[385327883,1757778655578,-400.0,0.00027397,2]
[385327885,1757778655588,-400.0,0.00027397,2]
[385327887,1757778655598,-675.64,0.00027397,2]
[385327889,1757778655608,-515.21,0.00027397,2]
[385327891,1757778655622,-400.0,0.00027397,2]
[385327893,1757778655633,-212.60831933,0.00027397,2]
[385327895,1757778655643,-678.22,0.00027397,2]
[385327898,1757778655653,-400.0,0.00027397,2]
[385327900,1757778655662,-400.0,0.00027397,2]
[385327902,1757778655672,-404.35001246,0.00027397,2]
[385327904,1757778655682,-400.0,0.00027397,2]
[385327906,1757778655692,-400.0,0.00027397,2]
[385327908,1757778655705,-400.0,0.00027397,2]
[385327910,1757778655714,-400.0,0.00027397,2]
[385327912,1757778655724,-741.23,0.00027397,2]
[385327913,1757778655734,-806.89,0.00027397,2]
[385327916,1757778655745,-752.28,0.00027397,2]
[385327918,1757778655755,-3316.79,0.00027397,2]
[385327920,1757778655765,-329.25004663,0.00027397,2]
[385327922,1757778655778,-405.94136487,0.00027397,2]
[385327924,1757778655788,-733.72,0.00027397,2]
[385327926,1757778655798,-400.0,0.00027397,2]
[385327928,1757778655808,-872.8,0.00027397,2]
[385327930,1757778655818,-402.35335315,0.00027397,2]
[385327932,1757778655828,-400.0,0.00027397,2]
[385327934,1757778655838,-300.55105089,0.00027397,2]
[385327936,1757778655847,-842.01,0.00027397,2]
[385327938,1757778655857,-400.0,0.00027397,2]
[385327940,1757778655870,-400.0,0.00027397,2]
[385327942,1757778655879,-451.61,0.00027397,2]
[385327944,1757778655890,-1648.37,0.00027397,2]
[385327954,1757778655974,-730.37,0.00027397,2]
[385327956,1757778655984,-400.0,0.00027397,2]
[385327958,1757778655994,-1188.53,0.00027397,2]
[385327960,1757778656004,-400.0,0.00027397,2]
[385327962,1757778656014,-400.0,0.00027397,2]
[385327964,1757778656023,-400.0,0.00027397,2]
[385327966,1757778656033,-400.0,0.00027397,2]
[385327968,1757778656043,-500.0,0.00027397,2]
[385327970,1757778656052,-807.17,0.00027397,2]
[385327972,1757778656062,-400.0,0.00027397,2]
[385327974,1757778656072,-238.58086039,0.00027397,2]
[385327976,1757778656081,-400.0,0.00027397,2]
[385327978,1757778656091,-400.0,0.00027397,2]
[385327980,1757778656101,-400.0,0.00027397,2]
[385327982,1757778656113,-400.0,0.00027397,2]
[385327984,1757778656122,-403.03927517,0.00027397,2]
[385327986,1757778656131,-151.0,0.00027397,7]
[385327988,1757778656141,-250.77,0.00027397,2]
[385327990,1757778656151,-1014.21,0.00027397,2]
[385327992,1757778656161,-869.51,0.00027397,2]
[385327994,1757778656170,-1000.0,0.00027397,7]
[385327996,1757778656180,-400.0,0.00027397,2]
[385327998,1757778656189,-400.0,0.00027397,2]
[385328000,1757778656199,-400.0,0.00027397,2]
[385328002,1757778656208,-1222.66,0.00027397,2]
[385328004,1757778656217,-500.0,0.00027397,2]
[385328006,1757778656227,-500.0,0.00027397,2]
[385328008,1757778656236,-766.01,0.00027397,2]
[385328010,1757778656245,-400.0,0.00027397,2]
[385328012,1757778656255,-671.73,0.00027397,2]
[385328014,1757778656265,-400.0,0.00027397,2]
[385328016,1757778656274,-435.21928485,0.00027397,2]
[385328018,1757778656284,-2778.98,0.00027397,2]
[385328020,1757778656295,-400.0,0.00027397,2]
[385328022,1757778656305,-261.07423831,0.00027397,2]
[385328024,1757778656315,-400.0,0.00027397,2]
[385328026,1757778656325,-429.03190887,0.00027397,2]
[385328028,1757778656334,-400.0,0.00027397,2]
[385328030,1757778656344,-402.23308963,0.00027397,2]
[385328032,1757778656353,-615.48,0.00027397,2]
[385328034,1757778656364,-1625.07,0.00027397,2]
[385328036,1757778656374,-572.09,0.00027397,2]
[385328038,1757778656384,-400.0,0.00027397,2]
[385328040,1757778656393,-2550.32,0.00027397,2]
[385328042,1757778656402,-754.38,0.00027397,2]
[385328044,1757778656412,-400.0,0.00027397,2]
[385328046,1757778656422,-400.0,0.00027397,2]
[385328048,1757778656432,-708.83,0.00027397,2]
[385328049,1757778656442,-466.88075629,0.00027397,2]
[385328122,1757778657155,-226.62924371,0.00027397,2]
[385328124,1757778657164,-844.84,0.00027397,2]
[385328126,1757778657174,-428.46483629,0.00027397,2]
[385328160,1757778657490,-519.2839997,0.00027397,2]
[385328172,1757778657598,-345.46116401,0.00027397,2]
[385328174,1757778657608,-233.12463249,0.00027397,2]
[385328176,1757778657620,-364.49536751,0.00027397,2]
[385328178,1757778657629,-233.04253249,0.00027397,2]
[385328180,1757778657641,-547.25694327,0.00027397,2]